[Event "48th Ciutat de Badalona Open 2024"]
[Site "Badalona"]
[Date "2024.08.06"]
[Round "5.5"]
[White "Cruz, Filemon"]
[Black "Luna Cortes, Luis"]
[Result "1-0"]
[ECO "A06"]
[WhiteElo "2249"]
[BlackElo "2173"]
[Annotator "ChessBase"]
[PlyCount "91"]
[EventDate "2024.07.29"]
[EventType "swiss"]
[EventCountry "ESP"]
[SourceTitle "playchess.com"]
[Source "ChessBase"]
[SourceQuality "1"]
[TimeControl "5400+30"]

1. Nf3 {[%emt 0:00:04]} d5 {[%emt 0:01:25]} 2. g3 {[%emt 0:00:09]} Nf6 {[%emt 0:02:02]} 3. Bg2 {[%emt 0:00:11]} e6 {[%emt 0:00:45]} 4. O-O {[%emt 0:02:46]} Be7 5. b3 {[%emt 1:29:50]} O-O {[%emt 0:01:27]} 6. Bb2 {[%emt 0:00:00]} Ne8 {[%emt 1:27:51]} 7. c4 {[%emt 0:01:00]} dxc4 {[%emt 0:00:00]} 8. bxc4 {[%emt 0:00:00]} c5 {[%emt 0:01:00]} 9. Nc3 {[%emt 0:00:00]} Nc6 {[%emt 0:00:00]} 10. d3 {[%emt 0:01:30]} Nc7 {[%emt 0:01:00]} 11. Nd2 {[%emt 0:00:30]} Bd7 {[%emt 0:00:30]} 12. Nb3 {[%emt 0:00:00]} Rb8 {[%emt 0:00:30]} 13. Qd2 {[%emt 0:00:00]} f5 {[%emt 0:00:00]} 14. f4 {[%emt 0:00:00]} a6 15. e4 {[%emt 0:02:00]} g6 {[%emt 0:01:30]} 16. exf5 {[%emt 0:00:30]} gxf5 {[%emt 0:00:00]} 17. g4 {[%emt 0:00:30]} Be8 {[%emt 0:00:00]} 18. gxf5 {[%emt 0:00:00]} Rxf5 {[%emt 0:00:00]} 19. Ne4 {[%emt 0:00:00]} Bg6 {[%emt 0:00:00]} 20. Qe3 {[%emt 0:00:00]} Qf8 {[%emt 0:00:00]} 21. Bh3 {[%emt 0:00:00]} Rh5 {[%emt 0:00:00]} 22. Bg4 {[%emt 0:00:00]} Rh4 {[%emt 0:00:00]} 23. Qg3 {[%emt 0:00:00]} Rxg4 {[%emt 0:00:00]} 24. Qxg4 {[%emt 0:00:00]} Qf5 {[%emt 0:00:00]} 25. Qxf5 {[%emt 0:00:00]} Bxf5 {[%emt 0:00:00]} 26. Kf2 {[%emt 0:00:00]} b5 {[%emt 0:00:00]} 27. Kf3 {[%emt 0:00:00]} a5 {[%emt 0:00:00]} 28. Rg1+ {[%emt 0:00:00]} Bg6 {[%emt 0:00:00]} 29. Be5 {[%emt 0:00:00]} Nxe5+ {[%emt 0:00:00]} 30. fxe5 {[%emt 0:00:00]} bxc4 {[%emt 0:00:00]} 31. dxc4 {[%emt 0:07:00]} Na6 {[%emt 0:01:04]} 32. Nxa5 {[%emt 0:00:00]} Rb2 {[%emt 0:00:29]} 33. Nc6 {[%emt 0:00:00]} Bf8 {[%emt 0:01:04]} 34. Rab1 {[%emt 0:00:00]} Rxh2 {[%emt 0:00:34]} 35. Rb7 {[%emt 0:00:00]} Kh8 {[%emt 0:02:40]} 36. Nf6 {[%emt 0:00:00]} Nb4 {[%emt 0:02:10]} 37. Nxb4 {[%emt 0:00:00]} cxb4 {[%emt 0:00:03]} 38. Rd1 {[%emt 0:00:00]} Rh3+ {[%emt 0:02:42]} 39. Kg2 {[%emt 0:00:00]} Rd3 {[%emt 0:00:19]} 40. Rxd3 {[%emt 0:00:00]} Bxd3 {[%emt 0:00:07]} 41. Rd7 {[%emt 0:00:00]} Bb1 {[%emt 0:00:18]} 42. Rc7 {[%emt 0:00:00]} Bh6 {[%emt 0:00:35]} 43. c5 {[%emt 0:00:00]} Be3 {[%emt 0:00:39]} 44. c6 {[%emt 0:01:05]} Bd4 {[%emt 0:00:08]} 45. Rc8+ {[%emt 0:00:54]} Kg7 {[%emt 0:00:07]} 46. Rg8+ {[%emt 0:05:31]} 1-0

[Event "48th Ciutat de Badalona Open 2024"]
[Site "Badalona"]
[Date "2024.08.06"]
[Round "5.6"]
[White "Vidarte Morales, Arturo"]
[Black "Pimpalkhare Vedant"]
[Result "1/2-1/2"]
[ECO "E05"]
[WhiteElo "2166"]
[BlackElo "2191"]
[Annotator "NA RC"]
[PlyCount "35"]
[EventDate "2024.07.29"]
[EventType "swiss"]
[EventCountry "ESP"]
[SourceTitle "playchess.com"]
[Source "ChessBase"]
[SourceQuality "1"]
[TimeControl "5400+30"]

1. Nf3 {[%emt 0:00:04]} d5 {[%emt 0:04:13]} 2. g3 {[%emt 0:00:15]} Nf6 {[%emt 0:00:23]} 3. Bg2 {[%emt 1:31:41]} e6 {[%emt 1:27:24]} 4. O-O {[%emt 0:00:00]} Be7 {[%emt 0:00:30]} 5. c4 {[%emt 0:00:00]} O-O {[%emt 0:00:30]} 6. d4 {[%emt 0:01:30]} dxc4 {[%emt 0:00:00]} 7. Qc2 {[%emt 0:00:30]} b6 {[%emt 0:00:00]} 8. Qxc4 {[%emt 0:00:00]} Bb7 9. Nc3 {[%emt 0:00:00]} Nbd7 10. Bf4 {[%emt 0:01:30]} c5 {[%emt 0:02:30]} 11. Rfd1 {[%emt 0:00:30]} Qc8 {[%emt 0:00:30]} 12. Rac1 {[%emt 0:00:00]} Nd5 13. dxc5 {[%emt 0:01:00]} bxc5 {[%emt 0:01:00]} 14. Nxd5 {[%emt 0:00:30]} Bxd5 {[%emt 0:00:30]} 15. Qc2 {[%emt 0:00:30]} Qb7 {[%emt 0:00:30]} 16. Ng5 {[%emt 0:00:00]} Bxg5 {[%emt 0:00:00]} 17. Bxd5 exd5 18. Bxg5 {[%emt 0:01:30]} 1/2-1/2

[Event "48th Ciutat de Badalona Open 2024"]
[Site "Badalona"]
[Date "2024.08.06"]
[Round "5.7"]
[White "Diaz Perez, Michel Alejandro"]
[Black "Vaibhav Jayant Raut"]
[Result "1/2-1/2"]
[ECO "E12"]
[WhiteElo "2487"]
[BlackElo "2101"]
[Annotator "TA"]
[PlyCount "104"]
[EventDate "2024.07.29"]
[EventType "swiss"]
[EventCountry "ESP"]
[SourceTitle "playchess.com"]
[Source "ChessBase"]
[SourceQuality "1"]
[TimeControl "5400+30"]

{[%evp 18,104,0,0,18,18,19,16,14,6,29,39,37,40,37,25,27,25,44,16,33,21,26,24,20,23,58,59,52,47,60,16,18,1,28,21,112,122,122,144,133,121,199,227,190,234,207,178,187,158,127,136,407,421,1033,1031,29982,29982,29970,29957,2251,439,385,368,377,0,0,0,0,0,0,0,0,0,0,0,0,0,0,-20,0,0,0,0,0,0,0,0,0]} 1. d4 {[%emt 0:00:28]} Nf6 {[%emt 0:00:39]} 2. c4 {[%emt 0:00:04]} e6 {[%emt 0:00:32]} 3. a3 {[%emt 0:00:09]} b6 {[%emt 0:00:36]} 4. Nc3 {[%emt 0:00:12]} Bb7 {[%emt 0:00:29]} 5. Nf3 {[%emt 0:01:34]} d5 {[%emt 1:30:44]} 6. Bg5 {[%emt 0:01:11]} Be7 {[%emt 0:00:00]} 7. Bxf6 {[%emt 0:00:03]} Bxf6 {[%emt 0:00:00]} 8. cxd5 {[%emt 1:30:49]} exd5 {[%emt 0:00:00]} 9. g3 {[%emt 0:00:00]} O-O {[%emt 0:00:00]} 10. Bg2 {[%emt 0:01:00]} Nd7 {[%emt 0:00:00]} 11. O-O {[%emt 0:00:30]} Re8 {[%emt 0:00:00]} 12. Rc1 {[%emt 0:00:30]} a6 {Prevents Nb5.} 13. e3 {[%emt 0:00:00]} b5 {[%emt 0:00:00]} 14. Ne1 {[%emt 0:00:00][%cal Bf3e1,Be1d3,Bd3c5][%mdl 32]} Nb6 {[%emt 0:00:00]} 15. Nd3 {[%emt 0:00:00]} c6 {[%emt 0:00:00]} 16. Nc5 {[%emt 0:00:00]} Bc8 {[%emt 0:00:00]} 17. b3 {[%emt 0:02:30]} Ra7 {[%emt 0:00:00]} 18. Re1 {[%emt 0:00:00]} Bf5 {[%emt 0:00:00]} 19. Qd2 {[%emt 0:00:00]} a5 {[%emt 0:07:00]} 20. a4 {[%emt 0:01:30]} b4 {[%emt 0:00:00]} 21. Ne2 {[%emt 0:00:00]} Nc8 22. Nd3 {[%emt 0:01:00]} Qb6 {[%emt 0:00:00] [#]} 23. Ne5 $1 {[%emt 0:00:00]} Rc7 {[%emt 0:00:00][%cal Oc8d6]} (23... Ne7 24. Nd3) 24. g4 {[%emt 0:00:00][%cal Bg3g4,Bg4h5,Bh5h6][%mdl 32]} Be6 {[%emt 0:00:00]} 25. h3 {[%emt 0:01:30]} Bxe5 {[%emt 0:00:00]} 26. dxe5 {[%emt 0:00:00]} h5 {[%emt 0:03:30]} 27. gxh5 $16 {[%emt 0:01:00]} c5 {[%emt 0:00:00] Prevents Qd4} 28. h6 {[%emt 0:00:00] Strongly threatening hxg7.} (28. Bxd5 Rd7 29. Nf4 Ne7 $11) 28... g6 {[%emt 0:00:00]} 29. Nf4 {[%emt 0:00:00] White is more active.} Ne7 {[%emt 0:00:00] [#]} (29... Rd7 $16 {was called for.}) 30. e4 $1 $18 {[%emt 0:00:00]} (30. Nxd5 $6 Nxd5 31. Bxd5 Rd7) 30... dxe4 {[%emt 0:00:00] [#]} 31. Nh5 $1 {[%emt 0:00:00][%mdl 512]} Kh8 {[%emt 0:02:30] [#]} (31... gxh5 $2 32. Qg5+ Ng6 33. Qf6 $18) 32. Qg5 {[%emt 0:00:00]} Bxb3 {[%emt 0:00:00] ...Nf5 is the strong threat.} 33. Rxe4 {[%emt 0:03:00][%cal Oe5e6] And now e6! would win.} (33. Nf6 Rec8 $11) 33... Nf5 {[%emt 0:01:00]} 34. Nf6 $36 {[%emt 0:00:00][%mdl 2048] White has strong initiative.} Re6 {[%emt 0:00:00][%mdl 8192] [#]} (34... Rf8 $16) 35. h4 $1 {[%emt 0:01:00]} Rce7 {[%emt 0:01:00]} (35... Ne7 $142 36. Rf4 c4) 36. h5 {[%emt 0:00:00]} Rxe5 {[%emt 0:00:00]} 37. hxg6 {[%emt 0:00:00]} fxg6 {[%emt 0:00:00]} 38. Rxe5 {[%emt 0:00:00]} (38. Nd7 Qd6 39. Rxe5 (39. Nxe5 Rxe5 40. Rce1 Rxe4 $18) 39... Rxe5 $16) 38... Rxe5 {[%emt 0:00:00]} 39. Nd7 {[%emt 0:00:00]} (39. Qxg6 $142 {[%csl Gf6][%cal Rg6h7]} Re7 40. Qxf5) 39... Qd6 {[%emt 0:00:00]} 40. Nxe5 {[%emt 0:00:00]} Qxe5 {[%emt 0:00:00]} 41. Bh3 $2 {[%emt 0:03:00]} (41. Qxg6 $18 {aiming for Qg5.} c4 42. Qf7) 41... c4 $11 {[%emt 0:00:57] The position is equal.} 42. Bxf5 {[%emt 0:00:00]} Qxf5 {[%emt 0:01:59][%mdl 4096] Endgame. KQR-KQB} 43. Qd8+ {[%emt 0:00:00]} Kh7 {[%emt 0:00:06][%cal Oc4c3]} 44. Re1 {[%emt 0:00:00]} Qg4+ {[%emt 0:00:34]} (44... Bxa4 $2 45. Qh4 Qf7 46. Re7 $18) (44... Kxh6 $2 45. Qh8+ Kg5 46. Re5 Bxa4 47. Qd8+ (47. Rxf5+ Kxf5 48. Qc8+ Ke5 $18) 47... Kh5 48. Rxf5+ $18) 45. Kh2 {[%emt 0:00:00] White threatens Qf6 and mate.} (45. Kf1 $5 Qh3+ $8 (45... Bxa4 $2 46. Re7+ Kxh6 47. Qf8+ Kg5 48. Re5+ $18) (45... Kxh6 $2 46. Qh8+ Kg5 47. Re5+ $18) (45... c3 $2 46. Re7+ Kxh6 47. Qh8+ Kg5 48. Re5+ $18) 46. Kg1 Qg4+ (46... Bxa4 47. Re7+ Kxh6 48. Qh8+ Kg5 49. Qxh3 Kf6 50. Qe3 Kf5 51. Rf7+ Kg4 52. Qg3+ Kh5 53. Rh7#) 47. Kh2 Qf4+ (47... Bxa4 $2 48. Re7+ Kxh6 49. Qf8+ Kg5 50. Re5+ $18) (47... Kxh6 $2 48. Qh8+ Kg5 49. Re5+ Kf4 50. Qf6+ $18) 48. Kg2 Qg4+ (48... Bxa4 49. Qe7+) (48... Kxh6 $2 49. Qh8+ Kg5 50. Re5+ $18) 49. Kh2 Qf4+ (49... Bxa4 $2 50. Re7+ Kxh6 51. Qf8+ Kg5 52. Re5+ $18) (49... Kxh6 $2 50. Qh8+ Kg5 51. Re5+ Kf4 52. Qf6+ $18) 50. Kg2 Qg4+ (50... Bxa4 51. Qe7+) (50... Kxh6 $2 51. Qh8+ Kg5 52. Re5+ $18) 51. Kh2 $11) 45... Qf4+ {[%emt 0:00:11]} (45... Bxa4 $2 46. Re7+ Kxh6 47. Qf8+ (47. Qxa5 $2 Bc6 $19) (47. Qh8+ Kg5 $18) 47... Kg5 48. Re5+ $18) (45... Kxh6 $2 46. Qf8+ (46. Qxa5 c3 $15) (46. Qh8+ Kg5 $18) 46... Kg5 47. Re5+ $18) 46. Kg2 {[%emt 0:00:00] Threatening mate with Qe7+.} Qg4+ $1 {[%emt 0:00:06]} (46... Bxa4 47. Qe7+ (47. Qxa5 Bc6+ 48. Kf1 Be4 $11) (47. Qxa5 Bc6+ 48. Kf1 Qd6 $11)) (46... Kxh6 $2 47. Qh8+ (47. Qxa5 c3 $15) 47... Kg5 48. Re5+ $18) 47. Kf1 {[%emt 0:00:00]} (47. Kh2 $5 Qf4+ $8 (47... Bxa4 $2 48. Re7+ Kxh6 49. Qf8+ Kg5 50. Re5+ $18) (47... Kxh6 $2 48. Qf8+ Kg5 49. Re5+ $18) 48. Kg1 Qg4+ (48... Bxa4 $2 49. Re7+ Kxh6 50. Qh8+ Kg5 51. Re5+ Kg4 52. Qc8+ Kh4 53. Qd8+ Kg4 54. Re3 $18) (48... Kxh6 $2 49. Qh8+ Kg5 50. Re5+ Kg4 51. Qc8+ Kh4 52. Qd8+ g5 53. Re3 $18) 49. Kf1 Qh3+ (49... Bxa4 $2 50. Re7+ Kxh6 51. Qf8+ Kg5 52. Re5+ $18) (49... Kxh6 $2 50. Qh8+ Kg5 51. Re5+ $18) (49... c3 $2 50. Re7+ Kxh6 51. Qh8+ Kg5 52. Re5+ $18) 50. Kg1 Qg4+ $11 (50... Bxa4 51. Re7+ Kxh6 52. Qh8+ Kg5 53. Qxh3 Kf6 54. Qe3 Kf5 55. Rf7+ Kg4 56. Qg3+ Kh5 57. Rh7#)) 47... Qh3+ $1 {[%emt 0:00:04]} (47... Bxa4 $2 48. Re7+ Kxh6 49. Qf8+ (49. Qxa5 $2 Qh3+ 50. Ke1 Qh1+ 51. Ke2 Bd1+ 52. Ke3 Qe1+ 53. Kd4 Qxe7 $19) 49... Kg5 50. Re5+ $18) (47... Kxh6 $2 48. Qh8+ (48. Qxa5 $2 c3 $19) 48... Kg5 49. Re5+ $18) (47... c3 $2 48. Re7+ Kxh6 49. Qh8+ (49. Qxa5 Bc4+) 49... Kg5 50. Re5+ $18) 48. Ke2 {[%emt 0:00:00]} (48. Kg1 $5 Qg4+ $8 (48... Bxa4 49. Re7+ Kxh6 50. Qh8+ Kg5 51. Qxh3 Kf6 52. Qe3 Kf5 53. Rf7+ Kg4 54. Qg3+ Kh5 55. Rh7#) 49. Kh2 Qf4+ (49... Bxa4 $2 50. Re7+ Kxh6 51. Qf8+ Kg5 52. Re5+ $18) (49... Kxh6 $2 50. Qh8+ Kg5 51. Re5+ Kf4 52. Qf6+ $18) 50. Kg2 Qg4+ (50... Bxa4 51. Qe7+) (50... Kxh6 $2 51. Qh8+ Kg5 52. Re5+ $18) 51. Kh2 $11) 48... Qe6+ {[%emt 0:01:01][%mdl 1024] Black has compensation.} (48... Bxa4 49. Qe7+ Kxh6 50. Qf8+ Kh7 51. Qf7+ Kh6 52. Qf4+ g5 53. Qxc4) (48... Qxh6 49. Qc7+ (49. Qxa5 Qh4 $16) 49... Kh8 50. Qb8+ (50. Qxa5 Qh3 $16) 50... Kg7 51. Qb7+ Kf6 52. Qf3+ Kg7 (52... Ke5 53. Kf1+ Kd6 54. Qf6+ Kc5 55. Re5+ Kd4 56. Re3+ Kc5 57. Qe7+ Kd5 58. Qd7+ Kc5 59. Re5+ Kb6 60. Re6+ Kc5 61. Qd6#) 53. Rh1 $18 (53. Qb7+ Kf6 $18)) 49. Kf1 {[%emt 0:00:00] Dancing on a razor blade.} Qh3+ {[%emt 0:00:05]} 50. Kg1 {[%emt 0:00:00] White wants to mate with Re7+.} Qg4+ {[%emt 0:00:13]} (50... Bxa4 51. Re7+ (51. Qxa5 Qg4+ 52. Kf1 Qh3+ 53. Kg1 Qg4+ 54. Kf1 Qh3+ 55. Kg1 $11) 51... Kxh6 52. Qh8+ (52. Qxa5 $2 Bc6 $19) 52... Kg5 53. Qxh3 Kf6 54. Qe3 Kf5 55. Rf7+ Kg4 56. Qg3+ Kh5 57. Rh7#) 51. Kh2 {[%emt 0:00:00] Intending Qf6 and mate.} (51. Kf1 $5 Qh3+ $8 $11 (51... Bxa4 $2 52. Re7+ Kxh6 53. Qf8+ Kg5 54. Re5+ $18) (51... Kxh6 $2 52. Qh8+ Kg5 53. Re5+ $18) (51... c3 $2 52. Re7+ Kxh6 53. Qh8+ Kg5 54. Re5+ $18)) 51... Qf4+ {[%emt 0:00:06]} (51... Bxa4 $2 52. Re7+ Kxh6 53. Qf8+ (53. Qxa5 $2 Bc6 $19) (53. Qh8+ Kg5 $18) 53... Kg5 54. Re5+ $18) (51... Kxh6 $2 52. Qf8+ (52. Qxa5 c3 $15) (52. Qh8+ Kg5 $18) 52... Kg5 53. Re5+ $18) 52. Kg1 {[%emt 0:00:00]} (52. Kg2 $5 Qg4+ $8 (52... Bxa4 53. Qe7+) (52... Kxh6 53. Qh8+ Kg5 54. Re5+) 53. Kh2 $11) 52... Qg4+ {[%emt 0:00:06] Black defended with fortune.   Weighted Error Value: White=0.24 (precise) /Black=0.35.  Loses game:     	---       	Black=1      Missed win:     	White=1     	---        Mistake:       	---       	Black=3      Inaccurate:     	White=2     	Black=3      OK:         	White=20    	Black=14     Best:        	White=3     	Black=5      Strong:       	White=1     	Black=2} (52... Bxa4 53. Re7+ Kxh6 54. Qh8+ Kg5 55. Re5+ Kg4 56. Qc8+ Kh4 57. Qd8+ Kg4 58. Re3 $18) (52... Kxh6 $2 {is the wrong capture.} 53. Qh8+ Kg5 54. Re5+ Kg4 55. Qc8+ Kh4 56. Qd8+ Kg4 57. Qd7+ $18) 1/2-1/2

[Event "48th Ciutat de Badalona Open 2024"]
[Site "Badalona"]
[Date "2024.08.06"]
[Round "5.8"]
[White "Pawar, Harshit"]
[Black "Deepak Ambattu, Rithvik"]
[Result "0-1"]
[ECO "B23"]
[WhiteElo "2284"]
[BlackElo "2079"]
[Annotator "NA RC"]
[PlyCount "94"]
[EventDate "2024.07.29"]
[EventType "swiss"]
[EventCountry "ESP"]
[SourceTitle "playchess.com"]
[Source "ChessBase"]
[SourceQuality "1"]
[TimeControl "5400+30"]

1. e4 {[%emt 0:02:46]} c5 {[%emt 0:00:07]} 2. Nc3 {[%emt 0:00:05]} Nc6 {[%emt 0:00:04]} 3. Bb5 {[%emt 0:01:39]} Nd4 {[%emt 0:00:07]} 4. Bc4 {[%emt 0:00:04]} e6 {[%emt 0:00:47]} 5. Nge2 {[%emt 0:00:33]} Nf6 {[%emt 0:01:16]} 6. O-O {[%emt 0:00:08]} a6 {[%emt 0:00:28]} 7. a4 {[%emt 0:00:05]} d5 {[%emt 0:00:39]} 8. exd5 {[%emt 0:00:02]} exd5 {[%emt 0:00:09]} 9. Ba2 {[%emt 0:00:03]} Ne6 {[%emt 0:00:35]} 10. d3 {[%emt 0:01:06]} Bd6 {[%emt 0:01:37]} 11. Ng3 {[%emt 0:00:08]} h5 {[%emt 0:06:30]} 12. Re1 {[%emt 0:01:43]} Kf8 {[%emt 0:05:12]} 13. Nf1 {[%emt 0:14:41]} g6 {[%emt 0:11:33]} 14. Nxd5 {[%emt 0:03:40]} Nxd5 {[%emt 0:02:14]} 15. Bxd5 {[%emt 0:00:04]} Bxh2+ {[%emt 0:00:51]} 16. Nxh2 {[%emt 0:00:11]} Qxd5 {[%emt 0:00:33]} 17. Qf3 {[%emt 0:00:22]} Qxf3 {[%emt 0:04:22]} 18. Nxf3 {[%emt 0:00:02]} f6 {[%emt 0:05:55]} 19. Be3 {[%emt 0:00:06]} Bd7 {[%emt 0:03:12]} 20. Nd2 {[%emt 0:00:02]} Bc6 {[%emt 0:08:17]} 21. Nb3 {[%emt 0:00:46]} Kf7 {[%emt 0:11:30]} 22. Bxc5 {[%emt 0:00:25]} h4 {[%emt 0:08:53]} 23. Be3 {[%emt 0:00:39]} h3 {[%emt 0:02:47]} 24. f3 {[%emt 0:00:02]} Rh5 {[%emt 0:08:24]} 25. g4 {[%emt 0:01:42]} Rh4 {[%emt 0:01:22]} 26. Kf2 {[%emt 0:00:25]} Rah8 {[%emt 0:01:38]} 27. Na5 {[%emt 0:00:17]} f5 {[%emt 0:01:03]} 28. Nc4 {[%emt 0:04:17]} h2 {[%emt 0:04:35]} 29. Rh1 {[%emt 0:00:27]} fxg4 {[%emt 0:01:05]} 30. Ne5+ {[%emt 0:00:38]} Kf6 {[%emt 0:01:12]} 31. Nxg4+ {[%emt 0:00:19]} Kf5 {[%emt 0:00:26]} 32. Nh6+ {[%emt 0:08:41]} R8xh6 {[%emt 0:00:41]} 33. Bxh6 {[%emt 0:00:03]} Rxh6 {[%emt 0:00:12]} 34. Kg3 {[%emt 0:00:02]} Nd4 {[%emt 0:02:20]} 35. c3 {[%emt 0:00:25]} Ne2+ {[%emt 0:00:09]} 36. Kf2 {[%emt 0:00:05]} Nf4 {[%emt 0:00:07]} 37. Ke3 {[%emt 0:00:24]} Rh3 {[%emt 0:01:00]} 38. Raf1 {[%emt 0:01:01]} Ng2+ {[%emt 0:00:48]} 39. Kd4 {[%emt 0:00:48]} Kf4 {[%emt 0:01:59]} 40. Kc5 {[%emt 0:00:02]} Bxf3 {[%emt 0:00:55]} 41. d4 {[%emt 0:00:01]} Ne3 {[%emt 0:00:39]} 42. Rf2 {[%emt 0:00:01]} Kg3 {[%emt 0:00:21]} 43. Rhxh2 {[%emt 0:00:08]} Rxh2 {[%emt 0:00:09]} 44. Rxh2 {[%emt 0:00:02]} Kxh2 {[%emt 0:00:08]} 45. c4 {[%emt 0:00:01]} g5 {[%emt 0:00:41]} 46. d5 {[%emt 0:00:01]} Nxd5 {[%emt 0:00:30]} 47. cxd5 {[%emt 0:00:02]} g4 {[%emt 0:00:15]} 0-1

[Event "48th Ciutat de Badalona Open 2024"]
[Site "Badalona"]
[Date "2024.08.06"]
[Round "5.9"]
[White "Weingarten, Phineas"]
[Black "Comas Molne, Pau"]
[Result "1-0"]
[ECO "B27"]
[WhiteElo "1824"]
[BlackElo "1860"]
[Annotator "NA RC"]
[PlyCount "141"]
[EventDate "2024.07.29"]
[EventType "swiss"]
[EventCountry "ESP"]
[SourceTitle "playchess.com"]
[Source "ChessBase"]
[SourceQuality "1"]
[TimeControl "5400+30"]

1. e4 {[%emt 0:00:02]} c5 {[%emt 0:00:08]} 2. Nf3 {[%emt 0:00:04]} g6 {[%emt 0:00:05]} 3. d4 {[%emt 0:00:28]} cxd4 {[%emt 0:00:05]} 4. Qxd4 {[%emt 0:00:48]} Nf6 {[%emt 0:00:08]} 5. e5 {[%emt 0:00:29]} Nc6 {[%emt 0:00:02]} 6. Qc4 {[%emt 0:15:20]} d5 {[%emt 0:01:48]} 7. exd6 {[%emt 0:00:25]} Qxd6 {[%emt 0:00:27]} 8. Be2 {[%emt 0:02:55]} Be6 {[%emt 0:03:18]} 9. Qh4 {[%emt 0:06:02]} Qb4+ {[%emt 0:03:21]} 10. Qxb4 {[%emt 0:02:04]} Nxb4 {[%emt 0:00:07]} 11. Na3 {[%emt 0:00:23]} Bf5 {[%emt 0:07:47]} 12. Bb5+ {[%emt 0:05:13]} Nd7 {[%emt 1:19:14]} 13. Nd4 {[%emt 0:04:16]} O-O-O {[%emt 0:00:30]} 14. Nxf5 {[%emt 0:04:33]} gxf5 {[%emt 0:00:00]} 15. c3 {[%emt 0:54:58]} Nd5 {[%emt 0:01:00]} 16. Nc4 {[%emt 0:00:30]} Bg7 {[%emt 0:00:00]} 17. Ne3 {[%emt 0:00:30]} Nxc3 {[%emt 0:01:00]} 18. Nxf5 {[%emt 0:00:30]} Nxb5 {[%emt 0:00:00]} 19. Nxg7 {[%emt 0:00:00]} Nd4 {[%emt 0:00:00]} 20. Bf4 {[%emt 0:00:00]} e5 {[%emt 0:00:00]} 21. Rc1+ {[%emt 0:00:00]} Kb8 {[%emt 0:00:00]} 22. Be3 {[%emt 0:00:00]} Rhg8 {[%emt 0:00:00]} 23. Nh5 {[%emt 0:00:00]} Rxg2 {[%emt 0:00:00]} 24. Bxd4 {[%emt 0:00:00]} exd4 {[%emt 0:00:00]} 25. Ng3 {[%emt 0:00:00]} Ne5 {[%emt 0:00:00]} 26. Kf1 {[%emt 0:00:00]} Rxg3 {[%emt 0:00:00]} 27. hxg3 {[%emt 0:00:00]} Nd3 {[%emt 0:00:00]} 28. Rb1 {[%emt 0:00:00]} f5 {[%emt 0:00:00]} 29. Rxh7 {[%emt 0:00:00]} f4 {[%emt 0:00:00]} 30. Rd1 {[%emt 0:00:00]} Nxb2 {[%emt 0:00:00]} 31. Rd2 {[%emt 0:03:37]} Nc4 {[%emt 0:00:00]} 32. Rd3 {[%emt 0:00:16]} fxg3 {[%emt 0:00:00]} 33. fxg3 {[%emt 0:00:11]} Rf8+ {[%emt 0:00:00]} 34. Ke2 {[%emt 0:00:28]} Re8+ {[%emt 0:00:00]} 35. Kf2 {[%emt 0:00:17]} Rd8 {[%emt 0:00:00]} 36. Rh4 {[%emt 0:00:34]} Ne5 {[%emt 0:00:00]} 37. Rdxd4 {[%emt 0:00:32]} Rf8+ {[%emt 0:00:00]} 38. Ke3 {[%emt 0:00:18]} Re8 {[%emt 0:00:00]} 39. Rde4 {[%emt 0:01:05]} Nc4+ {[%emt 0:00:00]} 40. Kd4 {[%emt 0:00:05]} Rc8 {[%emt 0:00:00]} 41. Rh7 {[%emt 0:00:36]} Nd6 {[%emt 0:00:00]} 42. Rf4 {[%emt 0:00:46]} Nb5+ {[%emt 0:00:00]} 43. Ke3 {[%emt 0:01:08]} Nd6 {[%emt 0:00:00]} 44. Kd4 {[%emt 0:00:24]} Nb5+ {[%emt 0:00:00]} 45. Kd3 {[%emt 0:00:22]} Rc3+ {[%emt 0:00:00]} 46. Kd2 {[%emt 0:00:12]} Rc8 {[%emt 0:00:00]} 47. Rfh4 {[%emt 0:01:08]} Nd6 {[%emt 0:00:00]} 48. Rd7 {[%emt 0:01:11]} Nc4+ {[%emt 0:00:00]} 49. Kd1 {[%emt 0:01:15]} Ne5 {[%emt 0:00:00]} 50. Rdh7 {[%emt 0:00:35]} Rd8+ {[%emt 0:00:00]} 51. Kc2 {[%emt 0:00:21]} Rc8+ {[%emt 0:00:00]} 52. Kb3 {[%emt 0:00:22]} Nf3 {[%emt 0:00:00]} 53. Rh1 {[%emt 0:00:29]} Nd4+ {[%emt 0:00:00]} 54. Kb2 {[%emt 0:00:26]} Rc2+ {[%emt 0:00:00]} 55. Kb1 {[%emt 0:00:04]} a5 {[%emt 0:00:00]} 56. R7h4 {[%emt 0:01:36]} Rc4 {[%emt 0:00:00]} 57. a3 {[%emt 0:00:21]} Nb5 {[%emt 0:00:10]} 58. a4 {[%emt 0:00:36]} Rxa4 {[%emt 0:01:39]} 59. Rxa4 {[%emt 0:00:06]} Nc3+ {[%emt 0:00:02]} 60. Kc2 {[%emt 0:00:10]} Nxa4 {[%emt 0:00:04]} 61. Ra1 {[%emt 0:00:21]} b5 {[%emt 0:00:34]} 62. g4 {[%emt 0:00:31]} Kc7 {[%emt 0:01:02]} 63. g5 {[%emt 0:00:12]} Nc5 {[%emt 0:05:02]} 64. g6 {[%emt 0:01:07]} Ne6 {[%emt 0:00:40]} 65. Rg1 {[%emt 0:00:51]} Ng7 {[%emt 0:01:19]} 66. Rf1 {[%emt 0:00:16]} Kb6 {[%emt 0:01:17]} 67. Rf7 {[%emt 0:00:08]} Nh5 {[%emt 0:00:10]} 68. g7 {[%emt 0:00:24]} Nxg7 {[%emt 0:00:02]} 69. Rxg7 {[%emt 0:00:06]} a4 {[%emt 0:00:33]} 70. Kc3 {[%emt 0:00:40]} Ka5 {[%emt 0:00:05]} 71. Rg5 {[%emt 0:00:30]} 1-0